bitfinex-derivatives/quotes_ETHF0:USTF0_20250904
["timestamp","ask_amount","ask_price","bid_price","bid_amount"]
[1756979043015,0.2954,4390.3,4390.2,3.4378]
[1756979048409,0.7117,4390.3,4390.2,3.2078]
[1756979048610,1.26141833,4390.3,4390.2,3.4378]
[1756979050420,1.26141833,4390.3,4390.2,3.2078]
[1756979054115,0.84511833,4390.3,4390.2,3.2078]
[1756979055119,1.03471833,4390.3,4390.2,3.2078]
[1756979058921,1.22621833,4390.3,4390.2,3.2078]
[1756979062814,1.22621833,4390.3,4390.0,0.23]
[1756979063118,0.6765,4390.3,4390.0,0.23]
[1756979063522,0.307,4390.0,4389.9,0.23]
[1756979063723,0.607,4390.0,4389.9,0.23]
[1756979064317,0.7985,4390.0,4389.9,0.23]
[1756979064916,0.3,4389.9,4389.8,0.23]
[1756979065122,0.6811,4389.9,4389.8,0.23]
[1756979066423,0.4896,4389.9,4389.8,0.23]
[1756979068525,0.3,4389.9,4389.8,0.23]
[1756979069220,0.6811,4389.9,4389.8,0.23]
[1756979075431,0.6811,4389.9,4389.8,1.85756155]
[1756979077235,1.23122062,4389.9,4389.8,1.85756155]
[1756979080841,0.6811,4389.9,4389.8,1.85756155]
[1756979096051,0.6811,4389.9,4389.8,0.23]
[1756979103361,0.6811,4389.9,4389.7,3.2078]
[1756979103665,0.7061,4389.8,4389.7,3.4378]
[1756979105265,1.25649788,4389.8,4389.7,0.23]
[1756979105472,0.7061,4389.7,4389.6,0.23]
[1756979105671,1.25649788,4389.7,4389.6,0.23]
[1756979106266,0.7061,4389.7,4389.6,0.23]
[1756979106965,0.4141,4389.3,4389.2,3.2078]
[1756979107161,0.7061,4389.3,4389.2,3.4378]
[1756979109473,0.7061,4389.3,4389.2,3.2078]
[1756979109969,0.7061,4389.3,4389.2,4.83536155]
[1756979120477,0.7061,4389.3,4389.2,3.2078]
[1756979120675,0.7061,4389.3,4389.2,4.83536155]
[1756979123579,0.7061,4389.3,4389.2,3.2078]
[1756979123778,0.7061,4389.3,4389.2,4.83536155]
[1756979126381,0.7061,4389.3,4389.2,3.2078]
[1756979133385,1.25724313,4389.3,4389.1,0.23]
[1756979133687,1.22124313,4389.2,4389.1,0.23]
[1756979135283,0.5936,4389.0,4388.9,0.23]
[1756979136583,0.7842,4389.0,4388.9,0.23]
[1756979139289,0.3995,4389.0,4388.9,0.23]
[1756979139985,0.2854,4389.5,4388.9,4.45784]
[1756979140181,3.2078,4389.9,4389.4,5.19665594]
[1756979140182,0.2854,4389.9,4389.4,5.19665594]
[1756979140388,0.2854,4389.9,4389.4,5.42665594]
[1756979140789,0.3115,4390.0,4389.4,5.42665594]
[1756979140990,0.2854,4389.9,4389.4,5.42665594]
[1756979141193,0.1174,4390.0,4389.4,5.42665594]
[1756979141391,0.2854,4389.9,4389.4,5.42665594]
[1756979141596,0.1174,4390.0,4389.4,5.42665594]
[1756979141797,0.2854,4389.9,4389.4,5.42665594]
[1756979141992,0.3115,4390.0,4389.4,5.42665594]
[1756979142192,0.1174,4390.0,4389.4,5.42665594]
[1756979142498,0.3123,4390.0,4389.4,5.42665594]
[1756979142887,0.4036,4390.0,4389.9,1.98885594]
[1756979144494,0.2862,4390.3,4389.9,1.98885594]
[1756979144698,0.2862,4390.3,4389.8,0.41436033]
[1756979144699,0.2862,4390.3,4390.2,1.98885594]
[1756979145202,0.4811,4390.3,4390.2,1.98885594]
[1756979146208,0.2862,4390.3,4390.2,1.98885594]
[1756979156409,0.4811,4390.3,4390.2,1.98885594]
[1756979160315,0.2862,4390.3,4390.2,1.98885594]
[1756979160711,0.6814,4390.3,4390.2,1.98885594]
[1756979164213,0.6814,4390.3,4390.1,0.229]
[1756979179521,0.1141,4391.0,4390.1,0.229]
[1756979179722,0.2919,4390.5,4390.4,5.19665594]
[1756979179918,0.2919,4390.9,4390.4,7.45987947]
[1756979180318,0.3035,4391.0,4390.4,5.42565594]
[1756979180530,0.5954,4391.0,4390.9,3.2078]
[1756979180731,0.406,4391.0,4390.9,5.42565594]
[1756979181125,0.406,4391.0,4390.9,3.4368]
[1756979181324,0.406,4391.0,4390.9,5.42565594]
[1756979182426,0.7915,4391.0,4390.9,5.19665594]
[1756979182729,0.7915,4391.0,4390.9,5.42565594]
[1756979183131,0.5954,4391.0,4390.9,5.42565594]
[1756979183329,0.7915,4391.0,4390.9,5.42565594]
[1756979185632,0.406,4391.0,4390.9,5.42565594]
[1756979185930,0.5954,4391.0,4390.9,5.42565594]
[1756979186934,0.2919,4391.4,4390.9,5.65339594]
[1756979187233,0.2919,4391.4,4391.3,1.98885594]
[1756979187421,0.2919,4391.4,4391.3,2.21785594]
[1756979193438,0.6774,4391.4,4391.3,2.21785594]
[1756979195438,0.2919,4391.4,4391.3,1.85509205]
[1756979197141,0.4813,4391.4,4391.3,1.85509205]
[1756979204144,0.6804,4391.4,4391.3,1.85509205]
[1756979204340,0.6804,4391.4,4391.3,1.62609205]
[1756979204546,0.6804,4391.4,4391.3,1.85509205]
[1756979215446,0.6804,4391.4,4390.9,3.2078]
[1756979215447,0.1136,4391.0,4390.9,3.2078]
[1756979215644,0.7992,4391.0,4390.9,3.2078]
[1756979215955,1.34914282,4391.0,4390.9,3.2078]
[1756979216744,6.97523487,4391.0,4390.9,3.2078]
[1756979217449,6.97523487,4391.0,4389.1,32.798]
[1756979217450,0.6856,4390.3,4390.2,1.62609205]
[1756979217640,1.23554282,4390.3,4390.2,1.62609205]
[1756979218544,0.6856,4390.2,4390.1,3.2078]
[1756979218745,5.23554282,4390.2,4390.1,3.2078]
[1756979218951,0.396,4389.6,4389.5,1.62609205]
[1756979219250,0.6856,4389.6,4389.5,1.62609205]
[1756979221053,0.6856,4389.6,4389.4,0.229]
[1756979221361,0.7992,4389.5,4389.4,1.85509205]
[1756979221655,0.7992,4389.5,4389.4,0.229]
[1756979222856,0.2896,4389.4,4389.3,3.2078]
[1756979223153,0.396,4388.9,4388.7,3.2078]
[1756979223352,0.6856,4388.8,4388.5,0.229]
[1756979223557,0.6856,4388.3,4388.2,3.2078]
[1756979223757,0.6856,4388.3,4388.2,3.4368]
[1756979226857,0.6856,4388.3,4388.2,5.06289205]
[1756979232357,0.1225,4388.0,4387.7,3.2078]
[1756979232554,0.707,4387.8,4387.7,5.06289205]
[1756979232754,0.707,4387.8,4387.7,3.2078]
[1756979235565,4.707,4387.8,4387.7,3.2078]
[1756979236558,4.707,4387.8,4387.0,3.4368]
[1756979236853,0.707,4387.1,4387.0,3.2078]
[1756979238163,0.707,4386.7,4386.6,1.85509205]
[1756979238355,0.707,4386.7,4386.5,3.2078]
[1756979238356,0.3122,4386.6,4386.5,3.2078]
[1756979238560,0.3122,4386.6,4386.5,4.83389205]
[1756979238856,0.5093,4386.6,4386.5,4.83389205]
[1756979241065,0.5093,4386.6,4386.5,1.62609205]
[1756979241264,0.5093,4386.6,4386.5,4.83389205]
[1756979241458,0.3122,4386.6,4386.5,4.83389205]
[1756979243464,0.3122,4386.6,4386.5,5.06289205]
[1756979244463,0.3122,4386.6,4386.5,3.4368]
[1756979244658,0.3122,4386.6,4386.5,5.06289205]
[1756979246359,0.5093,4386.6,4386.5,5.06289205]
[1756979257470,0.5093,4386.6,4386.5,5.42762028]
[1756979259280,0.3122,4386.6,4386.5,5.42762028]
[1756979259971,0.86104228,4386.6,4386.5,5.42762028]
[1756979260274,0.3122,4386.6,4386.5,5.42762028]
[1756979260868,0.86127176,4386.6,4386.5,5.42762028]
[1756979261369,0.1225,4387.0,4386.5,5.42762028]
[1756979261673,0.4347,4387.0,4386.9,1.99082028]
[1756979261976,0.98404381,4387.0,4386.9,1.99082028]
[1756979262170,0.67184381,4387.0,4386.8,0.229]
[1756979262376,0.83864381,4386.9,4386.8,2.21982028]
[1756979263676,0.83864381,4386.9,4386.8,1.99082028]
[1756979264874,0.54934381,4386.9,4386.8,2.21982028]
[1756979265079,0.54934381,4386.9,4386.8,2.44777028]
[1756979265278,0.4118,4387.5,4386.8,2.44777028]
[1756979265478,0.83961756,4387.4,4387.3,5.19862028]
[1756979265981,0.83961755,4387.4,4387.3,5.19862028]
[1756979266778,1.03161755,4387.4,4387.3,5.19862028]
[1756979267480,1.23281755,4387.4,4387.3,3.2078]
[1756979267679,0.1165,4387.0,4386.8,3.4368]
[1756979267880,1.23281755,4386.9,4386.8,3.4368]
[1756979270087,1.23281755,4386.9,4386.8,3.2078]
[1756979272583,0.6825,4386.9,4386.8,3.2078]
[1756979272984,0.4813,4386.9,4386.8,3.2078]
[1756979280189,0.2893,4386.9,4386.8,3.2078]
[1756979280592,0.2893,4387.4,4386.8,3.2078]
[1756979280781,1.03172992,4387.3,4387.2,1.99082028]
[1756979280984,1.23292992,4387.3,4387.2,1.99082028]
[1756979281780,0.6825,4387.3,4387.2,1.99082028]
[1756979281979,1.23293791,4387.3,4387.2,1.99082028]
[1756979282592,0.4058,4387.0,4386.9,2.21982028]
[1756979288695,0.5978,4387.0,4386.9,2.21982028]
[1756979290808,0.2893,4387.0,4386.9,2.21982028]
[1756979292804,0.411,4387.0,4386.9,2.21982028]
[1756979296614,0.2984,4387.4,4386.9,2.21982028]
[1756979296811,0.84920476,4387.3,4386.9,0.229]
[1756979297008,0.2984,4387.3,4387.2,1.99082028]
[1756979297213,0.84918428,4387.3,4387.2,1.99082028]
[1756979297407,0.1225,4388.0,4387.2,1.99082028]
[1756979297714,0.84905948,4387.9,4387.8,1.99082028]
[1756979297915,0.84905948,4387.9,4387.8,2.21982028]
[1756979298517,0.2984,4387.9,4387.8,2.21982028]
[1756979300817,0.8484043,4387.9,4387.8,2.21982028]
[1756979301011,0.2984,4388.4,4387.8,2.21982028]
[1756979301315,0.2984,4388.1,4388.0,3.2078]
[1756979301610,0.2984,4388.1,4388.0,3.4368]
[1756979302319,0.2984,4388.1,4388.0,5.42762028]
[1756979314225,0.2984,4388.9,4388.0,9.65551028]
[1756979314528,0.2984,4388.9,4388.8,1.99082028]
[1756979314724,0.2984,4388.9,4388.8,2.21982028]
[1756979316529,3.3295,4389.5,4388.8,2.44767028]
[1756979316530,0.2984,4389.4,4388.8,2.44767028]
[1756979316730,0.2984,4389.4,4389.3,1.99082028]
[1756979316931,0.2984,4389.4,4389.3,2.21982028]
[1756979319434,0.2984,4389.4,4389.3,1.85645133]
[1756979319630,0.2984,4389.9,4389.3,1.85645133]
[1756979319830,0.4966,4389.9,4389.8,1.62745133]
[1756979320735,0.6978,4389.9,4389.8,1.62745133]
[1756979324336,0.2984,4389.9,4389.8,1.62745133]
[1756979329246,0.4129,4390.0,4389.8,1.62745133]
[1756979329541,0.2912,4389.9,4389.8,1.62745133]
[1756979331246,0.4919,4389.9,4389.8,1.62745133]
[1756979342964,0.2912,4390.4,4389.8,1.62745133]
[1756979343254,0.54779238,4390.3,4389.9,0.22778]
[1756979343454,0.54779238,4390.2,4390.0,0.229]
[1756979343655,0.1217,4390.5,4390.0,0.229]
[1756979343860,0.2912,4390.3,4390.0,0.229]
[1756979344258,0.2912,4390.3,4390.2,3.25490266]
[1756979344449,0.2912,4390.5,4390.2,6.46270266]
[1756979344654,0.3224,4391.0,4390.2,6.46270266]
[1756979344858,0.8241,4391.0,4390.9,1.62745133]
[1756979345053,1.37227681,4391.0,4390.9,1.62745133]
[1756979368971,1.37227681,4391.0,4390.5,0.229]
[1756979369171,0.4964,4390.6,4390.5,0.229]
[1756979370471,0.4964,4390.6,4390.5,1.85645133]
[1756979370669,0.4964,4390.6,4390.5,0.229]
[1756979371874,0.7059,4390.6,4390.5,0.229]
[1756979372068,0.3041,4390.4,4390.2,3.2078]
[1756979372270,0.5244,4390.0,4389.9,0.229]
[1756979372475,0.8285,4390.0,4389.9,1.85645133]
[1756979378667,0.8285,4390.0,4389.9,1.62745133]
[1756979379477,0.8285,4390.0,4389.9,1.98786161]
[1756979379665,0.5244,4390.0,4389.7,3.2078]
[1756979379871,0.4018,4389.8,4389.7,3.2078]
[1756979380070,0.7059,4389.8,4389.7,3.2078]
[1756979386891,0.7059,4389.8,4389.7,3.4368]
[1756979389984,0.7059,4389.8,4389.7,3.2078]
[1756979390778,1.25298086,4389.8,4389.7,3.2078]
[1756979391487,0.124,4389.5,4389.2,5.42466161]
[1756979391684,0.7064,4389.3,4389.2,5.42466161]
[1756979394794,0.498,4389.3,4389.2,5.42466161]
[1756979402301,0.7064,4389.3,4389.2,5.42466161]
[1756979406098,0.7064,4389.3,4389.2,3.4368]
[1756979407903,0.498,4388.7,4388.1,3.2078]
[1756979408093,0.124,4388.5,4388.2,2.44471161]
[1756979408493,0.2911,4388.4,4388.3,0.22788]
[1756979408693,0.2911,4388.4,4388.2,2.21686161]
[1756979408996,0.124,4388.5,4388.2,2.21686161]
[1756979408997,0.2911,4388.3,4388.2,2.21686161]
[1756979409304,0.498,4388.3,4388.2,2.21686161]
[1756979410201,0.2911,4388.3,4388.2,2.21686161]
[1756979422712,0.4893,4388.3,4388.2,2.21686161]
[1756979424420,0.4893,4388.3,4388.1,3.2078]
[1756979424421,0.6877,4388.3,4388.1,3.2078]
[1756979424621,0.812,4387.5,4387.4,3.2078]
[1756979424817,0.812,4387.5,4387.3,0.229]
[1756979427617,0.812,4387.5,4387.2,2.21686161]
[1756979427819,0.2957,4387.4,4387.2,2.21686161]
[1756979428124,0.6923,4387.3,4387.2,2.21686161]
[1756979428423,0.6923,4387.3,4386.9,3.2078]
[1756979428424,0.6923,4387.3,4387.1,0.229]
[1756979428817,0.6923,4387.3,4387.0,0.229]
[1756979431113,0.6923,4387.3,4386.9,5.19566161]
[1756979431114,0.1197,4387.0,4386.9,5.42466161]
[1756979431424,0.6136,4387.0,4386.9,5.42466161]
[1756979436226,0.4154,4387.0,4386.9,5.42466161]
[1756979436526,0.2957,4387.4,4386.9,5.42466161]
[1756979436722,0.2957,4387.4,4387.3,1.98786161]
[1756979439529,0.2957,4387.4,4387.3,1.62913905]
[1756979443732,0.3032,4387.9,4387.3,3.4872781]
[1756979443932,0.3032,4387.9,4387.8,1.62913905]
[1756979444127,0.1197,4388.0,4387.7,3.2078]
[1756979444327,0.1197,4388.0,4387.9,1.62913905]
[1756979444328,0.4229,4388.0,4387.9,1.62913905]
[1756979444932,0.632,4388.0,4387.9,1.62913905]
[1756979445527,0.8219,4388.0,4387.7,3.2078]
[1756979445729,0.1156,4387.5,4387.4,1.62913905]
[1756979445937,0.8178,4387.5,4387.4,1.62913905]
[1756979451633,0.8178,4387.5,4386.2,2.03422353]
[1756979451634,0.1156,4386.5,4386.2,2.03422353]
[1756979451835,0.5123,4385.9,4385.8,3.2078]
[1756979452040,0.7022,4385.9,4385.8,3.2078]
[1756979452734,0.7022,4385.9,4385.3,3.2078]
[1756979452944,0.5123,4385.4,4385.3,3.2078]
[1756979453245,0.5123,4385.4,4385.3,4.83693905]
[1756979455135,0.5123,4385.4,4385.3,5.06693905]
[1756979457443,0.5123,4385.4,4385.3,3.4378]
[1756979457744,0.5123,4385.4,4385.3,5.06693905]
[1756979462554,0.3032,4385.4,4385.3,5.06693905]
[1756979464251,0.5123,4385.4,4385.3,5.06693905]
[1756979465746,0.7022,4385.4,4385.3,5.06693905]
[1756979467153,0.7022,4385.4,4385.3,3.4378]
[1756979469655,0.5123,4385.4,4385.3,3.4378]
[1756979470056,0.3032,4385.4,4385.3,3.4378]
[1756979471657,0.3032,4385.4,4385.3,0.23]
[1756979473760,0.5061,4385.4,4385.3,0.23]
[1756979476357,0.7016,4385.4,4385.3,0.23]
[1756979477256,0.7016,4385.4,4385.3,1.85913905]
[1756979477864,1.62913905,4385.4,4385.1,0.23]
[1756979478066,0.3984,4385.2,4385.1,0.23]
[1756979478260,0.703,4385.2,4385.1,0.23]
[1756979478461,0.3046,4385.1,4385.0,3.2078]
[1756979478662,0.3984,4384.9,4384.8,0.23]
[1756979478968,0.703,4384.9,4384.8,0.23]
[1756979479165,0.703,4384.9,4384.5,4.83693905]
[1756979479166,0.3046,4384.8,4384.5,4.83693905]
[1756979479470,0.3984,4384.7,4384.6,0.23]
[1756979479670,0.703,4384.7,4384.6,0.23]
[1756979487576,0.3046,4384.7,4384.6,0.23]
[1756979489477,0.3046,4384.9,4384.6,2.08720905]
[1756979489673,0.5075,4385.4,4384.8,3.2582781]
[1756979489977,0.3046,4385.3,4385.2,3.2078]
[1756979490178,0.703,4385.3,4385.2,3.4378]
[1756979491075,0.703,4385.3,4385.2,5.06693905]
[1756979495476,1.26280534,4385.3,4385.2,5.06693905]
[1756979497685,0.86440534,4385.3,4385.2,5.06693905]
[1756979498190,1.06730534,4385.3,4385.2,5.06693905]
[1756979499885,0.5075,4385.3,4385.2,5.06693905]
[1756979500593,0.703,4385.3,4385.2,5.06693905]
[1756979500895,1.26423698,4385.3,4385.2,5.06693905]
[1756979501494,1.26423698,4385.3,4385.2,5.42969355]
[1756979504899,1.06873698,4385.3,4385.2,5.42969355]
[1756979505101,0.3046,4385.3,4385.2,5.42969355]
[1756979511992,0.7072,4385.3,4385.2,5.42969355]
[1756979512805,1.26851738,4385.3,4385.2,5.42969355]
[1756979512997,0.7072,4385.3,4385.2,5.42969355]
[1756979513500,1.26855575,4385.3,4385.2,5.42969355]
[1756979513702,1.26855575,4385.3,4385.2,3.2078]
[1756979513904,0.86595575,4385.3,4385.2,5.42869355]
[1756979514106,0.3046,4385.3,4385.2,5.42869355]
[1756979515398,0.86607183,4385.3,4385.2,5.42869355]
[1756979517697,0.56147183,4385.3,4385.2,5.42869355]
[1756979517905,0.3015,4385.9,4385.2,7.6486271]
[1756979518107,0.3015,4385.9,4385.8,5.19969355]
[1756979518305,0.56161458,4386.3,4385.8,5.42869355]
[1756979518603,0.56161458,4386.2,4385.8,3.4368]
[1756979518804,0.3015,4386.0,4385.8,3.4368]
[1756979519004,0.86311458,4385.9,4385.8,3.4368]
[1756979519598,0.86311458,4385.9,4385.8,5.42869355]
[1756979526806,1.05681458,4385.9,4385.8,5.42869355]
[1756979527012,1.05681458,4385.9,4385.8,3.2078]
[1756979527013,1.26571458,4385.9,4385.8,3.2078]
[1756979527208,1.26571458,4385.9,4385.8,0.229]
[1756979529613,0.7041,4385.4,4385.3,3.2078]
[1756979529812,1.26571458,4385.4,4385.3,3.4368]
[1756979531020,0.3015,4385.4,4385.3,3.4368]
[1756979541016,0.3262,4386.0,4385.3,3.4368]
[1756979541218,0.3114,4385.8,4385.3,0.229]
[1756979541415,0.3114,4386.0,4385.7,3.2078]
[1756979541615,0.3114,4386.4,4385.8,0.229]
[1756979541817,0.3114,4386.4,4386.3,3.2078]
[1756979542016,0.3114,4386.4,4386.3,3.4368]
[1756979542216,0.87238997,4386.4,4386.3,5.42869355]
[1756979542417,0.87238997,4386.4,4386.3,3.4368]
[1756979542618,0.87238997,4386.4,4386.3,5.42869355]
[1756979542822,1.08148997,4386.4,4386.3,5.42869355]
[1756979545132,0.87238997,4386.4,4386.3,5.42869355]
[1756979545525,0.56098997,4386.4,4386.3,5.42869355]
[1756979545734,0.4279,4387.0,4386.3,9.42869355]
[1756979546032,0.3114,4387.4,4386.9,1.99189355]
[1756979546333,0.6421,4387.5,4387.4,1.99189355]
[1756979546533,1.20255803,4387.5,4387.4,2.22089355]
[1756979549032,0.3114,4387.5,4387.4,2.22089355]
[1756979549631,0.433,4387.5,4387.4,2.22089355]
[1756979552534,0.3114,4387.5,4387.4,2.22089355]
[1756979552737,0.3307,4388.0,4387.4,2.22089355]
[1756979553038,0.3307,4388.0,4387.9,1.99189355]
[1756979553039,0.433,4388.0,4387.9,1.99189355]
[1756979553340,0.433,4388.0,4387.9,2.22089355]
[1756979553925,0.3114,4388.4,4387.9,2.22089355]
[1756979554127,0.3114,4388.4,4388.3,5.19969355]
[1756979554332,0.3114,4388.9,4388.3,5.42869355]
[1756979554539,0.5205,4388.9,4388.8,1.99189355]
[1756979554741,0.7203,4388.9,4388.8,2.22089355]
[1756979556636,0.5205,4388.9,4388.8,5.42869355]
[1756979557024,0.3114,4388.9,4388.8,5.42869355]
[1756979560027,0.5205,4388.9,4388.8,5.42869355]
[1756979561530,0.5205,4388.9,4388.8,5.06484192]
[1756979562437,0.3114,4388.9,4388.8,5.06484192]
[1756979569344,3.782,4390.6,4388.8,6.69288384]
[1756979569345,0.2868,4389.4,4388.8,6.69288384]
[1756979569652,0.4956,4389.4,4389.3,4.83584192]
[1756979569839,0.4956,4389.4,4389.3,5.06484192]
[1756979571253,0.6901,4389.4,4389.3,5.06484192]
[1756979572352,1.24952955,4389.4,4389.3,5.06484192]
[1756979581161,1.24952955,4389.4,4389.3,0.229]
[1756979581567,1.47734955,4389.4,4389.3,0.229]
[1756979581764,1.24952955,4389.4,4389.3,0.229]
[1756979590675,1.24952955,4389.4,4389.3,1.85704192]
[1756979591079,1.24952955,4389.4,4389.3,5.06484192]
[1756979591576,1.25037573,4389.4,4389.3,5.06484192]
[1756979594179,0.84707573,4389.4,4389.3,5.06484192]
[1756979594377,1.04717573,4389.4,4389.3,5.06484192]
[1756979594881,1.25307573,4389.4,4389.3,5.06484192]
[1756979597083,0.84707573,4389.4,4389.3,5.06484192]
[1756979597281,0.2868,4389.4,4389.3,5.06484192]
[1756979598681,3.3294,4390.0,4389.3,5.06484192]
[1756979598985,0.2972,4389.4,4389.3,5.06484192]
[1756979599575,0.4973,4389.4,4389.3,5.06484192]
[1756979600595,0.2972,4389.4,4389.3,5.06484192]
[1756979606395,0.7032,4388.9,4388.8,3.2078]
[1756979606583,0.7032,4388.9,4388.8,5.06484192]
[1756979607286,0.4973,4388.9,4388.8,5.06484192]
[1756979613498,0.7032,4388.9,4388.8,5.06484192]
[1756979617799,0.7032,4388.9,4388.8,4.83584192]
[1756979618099,0.7032,4388.9,4388.8,5.06484192]
[1756979623403,0.7032,4388.9,4388.8,3.4368]
[1756979623606,0.7032,4388.9,4388.8,5.42554339]
[1756979625809,0.7032,4388.9,4388.8,3.4368]
[1756979626110,0.7032,4388.9,4388.8,5.42554339]
[1756979627202,0.2972,4388.9,4388.8,5.42554339]
[1756979627506,0.1216,4389.5,4388.8,5.42554339]
[1756979627507,0.1923,4389.3,4388.8,5.42554339]
[1756979627699,0.5038,4389.3,4389.2,1.98874339]
[1756979627899,0.5038,4389.3,4389.2,2.21774339]
[1756979628103,1.06418401,4389.3,4389.2,2.21774339]
[1756979628598,0.56038401,4389.3,4389.2,2.21774339]
[1756979629206,0.1216,4389.5,4389.2,2.21774339]
[1756979629407,0.56038714,4389.4,4389.3,3.2078]
[1756979629904,0.87188714,4389.4,4389.3,3.2078]
[1756979630906,0.3115,4389.4,4389.3,3.2078]
[1756979631907,0.5038,4389.4,4389.3,3.2078]
[1756979633216,0.1216,4389.5,4389.3,3.2078]
[1756979633410,0.4331,4390.0,4389.4,0.229]
[1756979633610,0.4331,4390.0,4389.9,1.98874339]
[1756979633807,0.6254,4390.0,4389.9,2.21774339]
[1756979637902,0.6254,4390.0,4389.9,0.229]
[1756979638102,0.8341,4390.0,4389.9,0.229]
[1756979638507,0.7125,4389.9,4389.8,3.2078]
[1756979638703,0.7125,4389.9,4389.8,3.4368]
[1756979639315,0.7125,4389.9,4389.8,0.229]
[1756979640910,1.27235507,4389.9,4389.8,0.229]
[1756979655632,0.3992,4388.9,4388.8,3.2078]
[1756979655835,0.3184,4388.5,4388.4,2.21774339]
[1756979656033,0.6187,4388.5,4388.4,2.21774339]
[1756979656629,0.4201,4388.5,4388.4,2.21774339]
[1756979659237,0.3003,4388.5,4388.4,2.21774339]
[1756979661434,0.4201,4388.5,4388.4,2.21774339]
[1756979664440,0.3202,4390.0,4388.4,8.43435678]
[1756979664640,0.4989,4389.9,4389.8,3.2078]
[1756979664846,0.6995,4389.9,4389.8,3.4368]
[1756979665742,0.6995,4389.9,4389.8,5.42554339]
[1756979667639,0.4989,4389.9,4389.8,5.42554339]
[1756979667843,0.1198,4390.5,4389.8,5.42554339]
[1756979667844,0.3003,4390.4,4389.8,5.42554339]
[1756979668142,0.3003,4390.4,4390.3,5.19654339]
[1756979668338,0.3003,4390.4,4390.3,5.42554339]
[1756979670342,0.6995,4390.4,4390.3,3.4368]
[1756979670544,1.25822075,4390.4,4390.3,3.4368]
[1756979671245,0.6995,4390.4,4390.3,3.4368]
[1756979684056,0.6995,4390.4,4390.3,0.229]
[1756979684351,0.5125,4389.7,4389.6,5.19654339]
[1756979684551,0.714,4389.7,4389.6,5.42554339]
[1756979685656,0.714,4389.7,4389.6,5.06435616]
[1756979686755,0.3072,4389.9,4389.6,5.06435616]
[1756979686960,0.3072,4389.9,4389.8,1.62755616]
[1756979687161,0.3072,4390.0,4389.8,1.85655616]
[1756979687462,0.2053,4390.4,4389.8,1.85655616]
[1756979687764,0.4068,4390.4,4390.3,1.62755616]
[1756979688058,0.4068,4390.4,4390.3,1.85655616]
[1756979688259,0.714,4390.4,4390.3,1.85655616]
[1756979688556,0.714,4390.4,4390.3,1.62755616]
[1756979693770,0.3072,4390.4,4390.3,1.62755616]
[1756979694366,0.86580917,4390.4,4390.3,1.62755616]
[1756979694666,1.07110917,4390.4,4390.3,1.62755616]
[1756979694861,1.27260917,4390.4,4390.3,1.62755616]
[1756979697069,0.86580917,4390.4,4390.3,1.62755616]
[1756979697371,0.3251,4391.0,4390.3,1.62755616]
[1756979697564,1.07109772,4390.9,4390.2,0.229]
[1756979697764,0.3072,4390.7,4390.2,0.229]
[1756979698673,0.5125,4390.7,4390.6,1.62755616]
[1756979698965,0.5125,4390.7,4390.6,1.85655616]
[1756979700773,0.714,4390.7,4390.6,0.229]
[1756979700963,0.714,4390.7,4390.6,1.85655616]
[1756979704168,0.5125,4390.7,4390.6,1.85655616]
[1756979708882,0.714,4390.7,4390.6,1.85655616]
[1756979711079,1.27265076,4390.7,4390.6,1.85655616]
[1756979714179,1.74735616,4391.5,4390.6,6.08431616]
[1756979714180,0.2988,4391.4,4390.6,6.08431616]
[1756979714479,0.2988,4391.9,4391.3,6.46291232]
[1756979714669,0.2988,4391.9,4391.8,3.25511232]
[1756979714870,0.2988,4391.9,4391.8,5.06435616]
[1756979716283,0.6928,4391.9,4391.8,5.06435616]
[1756979721379,0.6928,4391.9,4391.8,6.69191232]
[1756979722475,0.6928,4391.9,4391.8,5.06435616]
[1756979724789,0.4883,4391.9,4391.8,5.06435616]
[1756979725485,0.4883,4391.9,4391.8,6.69191232]
[1756979727283,0.2988,4391.9,4391.8,6.69191232]
[1756979727794,0.4883,4391.9,4391.8,6.69191232]
[1756979731602,0.2988,4391.9,4391.8,6.69191232]
[1756979732092,0.4883,4392.4,4391.8,6.69191232]
[1756979732301,0.1895,4392.4,4392.3,1.62755616]
[1756979732488,0.394,4392.4,4392.3,1.85655616]
[1756979732795,0.6928,4392.4,4392.3,1.85655616]
[1756979742702,0.4883,4392.4,4392.3,1.85655616]
[1756979743405,1.04316003,4392.4,4392.3,1.85655616]
[1756979745505,1.24396003,4392.4,4392.3,1.85655616]
[1756979747405,1.24396003,4392.4,4392.3,2.21474966]
[1756979752105,1.04316003,4392.4,4392.3,2.21474966]
[1756979756314,1.24396003,4392.4,4392.3,2.21474966]
[1756979760609,1.04316003,4392.4,4392.3,2.21474966]
[1756979760813,0.85366003,4392.4,4392.3,2.21474966]
[1756979761701,0.55486003,4392.4,4392.3,5.42254966]
[1756979761901,0.4261,4393.0,4392.3,9.42254966]
[1756979762107,0.4261,4393.0,4392.9,1.98574966]
[1756979763215,0.1143,4393.0,4392.9,1.98574966]
[1756979763813,0.4261,4393.0,4392.9,1.98574966]
[1756979765407,0.1143,4393.5,4392.9,6.21338966]
[1756979765615,0.3118,4393.9,4393.4,1.98574966]
[1756979765808,0.75847792,4393.8,4393.5,0.229]
[1756979766010,1.07027792,4393.7,4393.5,0.229]
[1756979766216,0.5159,4393.7,4393.5,0.229]
[1756979766904,0.5159,4393.7,4393.6,1.98574966]
[1756979768516,0.3118,4393.7,4393.6,1.98574966]
[1756979769818,0.5159,4393.7,4393.6,1.98574966]
[1756979770208,0.4049,4392.9,4392.8,3.2078]
[1756979770412,0.7167,4392.9,4392.8,3.2078]
[1756979772219,0.7167,4392.9,4392.8,3.4368]
[1756979772917,0.3118,4392.9,4392.8,3.4368]
[1756979773222,0.1164,4393.0,4392.8,3.4368]
[1756979773415,0.4118,4393.0,4392.8,5.42254966]
[1756979773722,0.2954,4393.4,4392.8,9.42254966]
[1756979774023,0.2954,4393.4,4393.3,1.98574966]
[1756979774214,0.2954,4393.4,4393.3,2.21474966]
[1756979774819,0.4118,4393.5,4393.3,5.42254966]